Cogmind - Beta 12 @@@ ROGUE MODE // 2023.09.07 @ 19:51:41 Player: heather Result: Destroyed by L-41 Fighter with Axe Performance ------------- Evolutions (1) 500 Regions Visited (6) 1200 Robots Destroyed (45) 225 Value Destroyed (1075) 1075 Prototype IDs (5) 100 Alien Tech Used (0) 0 Bonus (600) 600 TOTAL SCORE: 3700 Bonus ------- Met Imprinter 300 Was Imprinted 300 Cogmind --------- Core Integrity 0/400 Matter 280/300 Energy 100/100 System Corruption 0% Temperature Cool (0) Movement Core (50) Location -6/Proximity Caves Parts ------- > --- POWER (1) -------- (None) > --- PROPULSION (2) --- Improved Flight Unit > --- UTILITY (4) ------ Visual Processing Unit Signal Interpreter > --- WEAPON (2) ------- CR-A16's Pointy Stick > --- INVENTORY (5) ---- Sensor Array 0b10 Decoder Chip [Looter] ECM Suite Small Laser Heavy Laser Peak State ------------ > --- POWER ------------ Light Ion Engine > --- PROPULSION ------- Improved Flight Unit Improved Flight Unit > --- UTILITY ---------- Small Storage Unit Visual Processing Unit Signal Interpreter Hacking Suite > --- WEAPON ----------- Small Laser Small Laser > --- INVENTORY -------- Sensor Array 0b10 Decoder Chip [Looter] ECM Suite Makeshift System Shield Phasing AFG Grenade Launcher Datajack CR-A16's Pointy Stick [Rating: 19] Favorites ----------- Power Light Ion Engine Engine Light Ion Engine Power Core Light Nuclear Core Propulsion Aluminum Leg Treads Light Treads Leg Aluminum Leg Hover Unit Hover Unit Flight Unit Improved Flight Unit Utility Signal Interpreter Device Improved Terrain Scanner Storage Small Storage Unit Processor Signal Interpreter Hackware Hacking Suite Protection Propulsion Shielding Weapon Medium Laser Energy Gun Medium Laser Ballistic Gun Assault Rifle Launcher Grenade Launcher Piercing Weapon CR-A16's Pointy Stick Special Melee Weapon Datajack Build | -11 -10 -10 -9 -9 -7 -6 ------- Run | Jun Mat Min Mat Min Zio Pro Slots Evolved 2 | . . . 2 . . . Power . | . . . . . . . Propulsion . | . . . . . . . Utility 2 | . . . 2 . . . Weapon . | . . . . . . . Parts Attached 71 | 7 23 11 25 . . 5 Power 10 | 1 4 2 3 . . . Engine 9 | 1 4 1 3 . . . Core 1 | . . 1 . . . . Reactor . | . . . . . . . Propulsion 17 | 2 5 4 5 . . 1 Treads 6 | 2 2 2 . . . . Leg 5 | . . 2 2 . . 1 Wheel . | . . . . . . . Hover 4 | . 3 . 1 . . . Flight 2 | . . . 2 . . . Utility 15 | 2 4 1 8 . . . Device 4 | 1 . . 3 . . . Storage 5 | 1 2 1 1 . . . Processor 3 | . 2 . 1 . . . Hackware 1 | . . . 1 . . . Protection 2 | . . . 2 . . . Artifact . | . . . . . . . Weapon 29 | 2 10 4 9 . . 4 Energy Gun 18 | 2 6 2 7 . . 1 Energy Cannon . | . . . . . . . Ballistic Gun 2 | . 1 1 . . . . Ballistic Cannon . | . . . . . . . Launcher 3 | . 2 . . . . 1 Special Weapon . | . . . . . . . Impact Weapon . | . . . . . . . Slashing Weapon . | . . . . . . . Piercing Weapon 1 | . . . . . . 1 Special Melee Weapon 5 | . 1 1 2 . . 1 Unidentified Prototypes . | . . . . . . . Parts Lost 11 | . 1 3 . . . 7 Power 2 | . . 1 . . . 1 Propulsion 4 | . . 2 . . . 2 Utility 2 | . 1 . . . . 1 Weapon 3 | . . . . . . 3 Highest Loss Streak 7 | . 1 1 . . . 7 To Critical Strikes . | . . . . . . . Average Slot Usage (%) 97 | . 96 97 93 100 100 87 Engine 7 | . 13 3 8 11 11 7 Core 4 | . . 10 . . . . Treads 5 | . 19 3 . . . . Leg 10 | . . 21 11 . . 1 Hover 2 | . 8 . 1 . . . Flight 6 | . . . 9 22 22 19 Storage 12 | . 14 14 11 11 11 8 Processor 15 | . 10 14 15 22 22 22 Hackware 3 | . . . 10 11 11 8 Energy Gun 23 | . 23 26 16 22 22 13 Ballistic Gun 1 | . 1 1 . . . . Naked Turns . | . . . . . . . Heaviest Build 90 | 13 20 90 90 10 10 12 Greatest Support 40 | 40 40 40 26 10 10 15 Greatest Overweight (x) 4 | . 1 4 4 . . 1 Average Overweight (x) . | . . 3 . . . . Largest Inventory Capacity 25 | 8 10 25 25 8 8 8 Average Capacity 15 | 7 8 24 9 8 8 7 Most Carried 13 | 6 10 13 12 8 8 8 Average Carried 9 | 3 8 11 7 8 7 7 Final Capacity 25 | 8 8 25 8 8 8 5 Final Carried 12 | 4 8 12 8 8 8 5 Class Distribution -------------------- 73% | Scavenger-Mutant 26% | Mutant Dominant Class ---------------- Mutant | -10/Materials Scavenger-Mutant | -10/Mines Scavenger-Mutant | -9/Materials Scavenger-Mutant | -9/Mines Scavenger-Mutant | -7/Zion Scavenger-Mutant | -6/Proximity Caves Resources | -11 -10 -10 -9 -9 -7 -6 ----------- Run | Jun Mat Min Mat Min Zio Pro Matter Collected 1027 | 229 347 117 274 . 15 45 Remotely . | . . . . . . . Salvage Created 1517 | 132 688 163 440 . . 94 Parts 79 | 13 32 6 26 . . 2 Haulers Intercepted 4 | . 2 . 2 . . . Recyclers Shooed 2 | 2 . . . . . . Parts Field Recycled . | . . . . . . . Retrieved Matter . | . . . . . . . Parts Self-Destructed . | . . . . . . . Prevented . | . . . . . . . Kills | -11 -10 -10 -9 -9 -7 -6 ------- Run | Jun Mat Min Mat Min Zio Pro Combat Hostiles Destroyed 25 | . 11 4 7 . . 3 Melee 2 | . . . . . . 2 Guns 17 | . 6 4 7 . . . AOE 6 | . 5 . . . . 1 Classes Destroyed 9 | 3 6 . . . . . Worker 3 | 1 2 . . . . . Tunneler 2 | 2 . . . . . . Hauler 4 | . 2 . 2 . . . Recycler 4 | 1 2 . 1 . . . Mechanic 1 | . 1 . . . . . Operator 2 | . 2 . . . . . Watcher 4 | . 3 . 1 . . . Swarmer 3 | . 3 . . . . . Grunt 22 | . 8 4 7 . . 3 Best Kill Streak 7 | 3 7 2 3 . . 3 Combat Bots Only 3 | . 3 2 3 . . 3 Max Kills in Single Turn 3 | 1 3 1 1 . . 1 Gunslinging . | . . . . . . . Exploded 2 | . 2 . . . . 1 Melee 1 | . . . . . . 1 Uniques/NPCs Destroyed . | . . . . . . . Combat | -11 -10 -10 -9 -9 -7 -6 -------- Run | Jun Mat Min Mat Min Zio Pro Damage Taken 1951 | . 458 271 386 . . 836 Core 665 | . 115 120 65 . . 365 Absorbed by Shields . | . . . . . . . Redirected to Shielding 27 | . . . 27 . . . Core Remaining (%) 53 | 100 . 6 . . . . Volleys Fired 124 | 8 64 16 31 . . 5 Largest 2 | 2 2 2 2 . . 1 Hottest 130 | 100 100 115 130 . . 30 Shots Fired 220 | 16 105 32 62 . . 5 Gun 205 | 16 95 32 62 . . . Cannon . | . . . . . . . Launcher 15 | . 10 . . . . 5 Special . | . . . . . . . Kinetic 19 | . 9 10 . . . . Thermal 186 | 16 86 22 62 . . . Explosive 15 | . 10 . . . . 5 Electromagnetic . | . . . . . . . Robot Hit Streak 13 | 10 12 12 13 . . 6 Robot Miss Streak 3 | 1 3 2 2 . . . Penetration Max . | . . . . . . . Secondary Targets 1 | . . . 1 . . . Max Gunslinging Chain 1 | . . . 1 . . . Shots Hit Robots 173 | 13 74 26 51 . . 9 Core Hits 86 | 6 34 11 17 . . 18 Critical Kills . | . . . . . . . Critical Parts Destroyed . | . . . . . . . Critical Strikes 11 | . 4 4 3 . . . Burn 11 | . 4 4 3 . . . Melee Attacks 17 | . . . 4 . . 13 Impact . | . . . . . . . Slashing . | . . . . . . . Piercing 10 | . . . . . . 10 Sneak Attacks 3 | . . . 3 . . . Combat Hostiles . | . . . . . . . Follow-up Attacks . | . . . . . . . Damage Inflicted 3180 | 176 1475 343 646 . . 540 Guns 1979 | 165 828 340 646 . . . Cannons . | . . . . . . . Explosions 1024 | . 632 . . . . 392 Melee 148 | . . . . . . 148 Ramming 29 | 11 15 3 . . . . Kinetic 147 | . 63 84 . . . . Thermal 1832 | 165 765 256 646 . . . Explosive 1024 | . 632 . . . . 392 Electromagnetic . | . . . . . . . Impact . | . . . . . . . Slashing . | . . . . . . . Piercing 148 | . . . . . . 148 Highest Corruption . | . . . . . . . Average Corruption . | . . . . . . . Corruption Purged . | . . . . . . . Corruption Blocked . | . . . . . . . Overload Shots . | . . . . . . . Overflow Damage 54 | . 54 . . . . . Projectiles . | . . . . . . . Explosions 54 | . 54 . . . . . Melee . | . . . . . . . Knockbacks . | . . . . . . . Impact . | . . . . . . . Kinetic . | . . . . . . . Secondary . | . . . . . . . Self-Inflicted Damage 12 | . . . . . . 12 Shots 1 | . . . . . . 1 Rammed 19 | 11 4 4 . . . . Targets Rammed 21 | 11 6 4 . . . . Kicked . | . . . . . . . Crushed 2 | . 2 . . . . . Highest Temperature 440 | 177 428 221 440 . . 7 Average Temperature 107 | 70 107 71 138 . . 4 Received Heat Transfer 789 | . 234 150 234 . . 171 Effects 8 | . 3 . 5 . . . Shutdowns 3 | . 1 . 2 . . . Energy Bleed 1 | . . . 1 . . . Matter Decay 1 | . . . 1 . . . Short Circuit 3 | . 2 . 1 . . . Siege Activations . | . . . . . . . Robots Corrupted . | . . . . . . . Combat Hostiles . | . . . . . . . Parts Fried . | . . . . . . . Impact Corruptions . | . . . . . . . Robots Melted . | . . . . . . . Combat Hostiles . | . . . . . . . Parts Melted 11 | 1 4 3 3 . . . Heat Transferred 5766 | 481 2553 999 1733 . . . Parts Sabotaged . | . . . . . . . Parts Stolen . | . . . . . . . Parts Stripped . | . . . . . . . Power Chain Reactions . | . . . . . . . Missiles Intercepted . | . . . . . . . Alert | -11 -10 -10 -9 -9 -7 -6 ------- Run | Jun Mat Min Mat Min Zio Pro Peak Influence 250 | 20 250 137 209 40 . . Initial 57 | . 13 57 . 40 . . Average 57 | 7 114 23 103 40 . . Maximum Alert Level 1 | . 1 . 1 . . . Low Security (%) 93 | 100 83 100 85 100 . . Level 1 6 | . 16 . 14 . . . Level 2 . | . . . . . . . Level 3 . | . . . . . . . Level 4 . | . . . . . . . Level 5 . | . . . . . . . High Security . | . . . . . . . Max Security . | . . . . . . . Squads Dispatched 4 | . 2 . 2 . . . Investigation 2 | . . . 2 . . . Extermination . | . . . . . . . Reinforcement 2 | . 2 . . . . . Assault . | . . . . . . . Garrison . | . . . . . . . Intercept . | . . . . . . . Searches Triggered . | . . . . . . . Construction Impeded . | . . . . . . . Haulers Reinforced . | . . . . . . . Active Scanning Responses . | . . . . . . . Cargo Convoy Interrupts . | . . . . . . . Stealth | -11 -10 -10 -9 -9 -7 -6 --------- Run | Jun Mat Min Mat Min Zio Pro Distress Signals 2 | . 2 . . . . . Communications Jammed . | . . . . . . . Distress Signals . | . . . . . . . Times Spotted 55 | . 27 5 19 . . 4 Peak Tracking Total 6 | . 6 2 6 . . 4 Tactical Retreats 4 | . 1 1 2 . . . Traps | -11 -10 -10 -9 -9 -7 -6 ------- Run | Jun Mat Min Mat Min Zio Pro Traps Triggered 1 | . 1 . . . . . Indirectly . | . . . . . . . Trap Hack Attempts . | . . . . . . . Triggered . | . . . . . . . Disarmed . | . . . . . . . Reprogrammed . | . . . . . . . Reused . | . . . . . . . Traps Extracted . | . . . . . . . Installed . | . . . . . . . Triggered 1 | . . 1 . . . . Machines | -11 -10 -10 -9 -9 -7 -6 ---------- Run | Jun Mat Min Mat Min Zio Pro Machines Disabled 1 | . 1 . . . . . Max in Single Turn 1 | . 1 . . . . . Machines Repaired . | . . . . . . . Machines Sabotaged . | . . . . . . . Overloaded Fab Kills . | . . . . . . . Hacking | -11 -10 -10 -9 -9 -7 -6 --------- Run | Jun Mat Min Mat Min Zio Pro Machines Accessed 10 | . 6 . 4 . . . Terminals 7 | . 4 . 3 . . . Fabricators . | . . . . . . . Repair Stations 1 | . . . 1 . . . Recycling Units 2 | . 2 . . . . . Scanalyzers . | . . . . . . . Garrison Access . | . . . . . . . Total Hacks 25 | . 14 . 11 . . . Successful 10 | . 7 . 3 . . . Failed 15 | . 7 . 8 . . . Catastrophic . | . . . . . . . Database Lockouts . | . . . . . . . Manual 1 | . . . 1 . . . Terminals 19 | . 12 . 7 . . . Fabricators . | . . . . . . . Repair Stations 4 | . . . 4 . . . Recycling Units 2 | . 2 . . . . . Scanalyzers . | . . . . . . . Garrison Access . | . . . . . . . Terminal Hacks 7 | . 5 . 2 . . . Record 1 | . 1 . . . . . Prototype ID Bank 4 | . 4 . . . . . Branch Access Points 1 | . . . 1 . . . Maintenance Status 1 | . . . 1 . . . Fabricator Hacks . | . . . . . . . Repair Station Hacks 1 | . . . 1 . . . Scan Component 1 | . . . 1 . . . Recycling Unit Hacks 2 | . 2 . . . . . Report Inventory 2 | . 2 . . . . . Scanalyzer . | . . . . . . . Garrison Access Hacks . | . . . . . . . Unauthorized Hacks . | . . . . . . . Terminals . | . . . . . . . Fabricators . | . . . . . . . Repair Stations . | . . . . . . . Recycling Units . | . . . . . . . Scanalyzers . | . . . . . . . Garrison Access . | . . . . . . . Data Cores Recovered . | . . . . . . . Used . | . . . . . . . Hacking Detections 7 | . 4 . 3 . . . Full Trace Events 3 | . . . 3 . . . Feedback Events . | . . . . . . . Feedback Blocked . | . . . . . . . Robot Schematics Acquired 3 | . . . . . 3 . Robots Built . | . . . . . . . Authchips . | . . . . . . . Time . | . . . . . . . Total Robot Build Rating . | . . . . . . . Part Schematics Acquired 14 | . . . . . 14 . Parts Built . | . . . . . . . Authchips . | . . . . . . . Time . | . . . . . . . Total Part Build Rating . | . . . . . . . Parts Repaired . | . . . . . . . Time . | . . . . . . . Parts Recycled . | . . . . . . . Recycled Matter . | . . . . . . . Retrieved Matter . | . . . . . . . Retrieved Components . | . . . . . . . Parts Scanalyzed . | . . . . . . . Part Schematics Acquired . | . . . . . . . Parts Damaged . | . . . . . . . Bothacking | -11 -10 -10 -9 -9 -7 -6 ------------ Run | Jun Mat Min Mat Min Zio Pro Used RIF Installer . | . . . . . . . Robots Hacked 3 | . . . 3 . . . Non-combat 2 | . . . 2 . . . Combat 1 | . . . 1 . . . Robot Hacks Applied 4 | . . . 4 . . . parse_system 1 | . . . 1 . . . no_distress 2 | . . . 2 . . . find_station 1 | . . . 1 . . . Relay Couplers Released . | . . . . . . . Fabnet Peak Effective % . | . . . . . . . Robots Rewired . | . . . . . . . Allies Hacked . | . . . . . . . Hacks Repelled . | . . . . . . . Allies | -11 -10 -10 -9 -9 -7 -6 -------- Run | Jun Mat Min Mat Min Zio Pro Total Allies 4 | . . . . . 4 . Largest Group 4 | . . . . . 4 . Highest-Rated Group 159 | . . . . . 159 . Highest-Rated Ally 40 | . . . . . 40 . Total Orders . | . . . . . . . Ally Attacks . | . . . . . . . Total Damage . | . . . . . . . Kills . | . . . . . . . Allies Corrupted . | . . . . . . . Allies Melted . | . . . . . . . Intel | -11 -10 -10 -9 -9 -7 -6 ------- Run | Jun Mat Min Mat Min Zio Pro Robot Analysis Total . | . . . . . . . Derelict Logs Recovered 3 | . . 2 . . 1 . Drone Launches . | . . . . . . . Drone Recoveries . | . . . . . . . Exploration | -11 -10 -10 -9 -9 -7 -6 ------------- Run | Jun Mat Min Mat Min Zio Pro Turns Passed 5478 | 188 1136 2358 512 19 1134 131 Spaces Moved 3711 | 90 788 583 599 47 1397 207 Core 18 | 18 . . . . . . Treads 488 | 72 321 95 . . . . Legs 529 | . . 451 76 . . 2 Wheels . | . . . . . . . Hover 569 | . 467 37 65 . . . Flight 2107 | . . . 458 47 1397 205 Fastest Speed 37 | 50 56 56 37 37 37 37 Average Speed 109 | 138 101 379 54 37 37 38 Slowest Speed 480 | 160 160 480 400 37 37 120 Overloaded Moves . | . . . . . . . Propulsion Burnouts . | . . . . . . . Robots Hopped . | . . . . . . . Cave-ins Triggered . | . . . . . . . Exploration Rate (%) 51 | 5 87 97 47 16 91 17 Regions Visited 6 Branch Regions 4 Pre-discovered Areas 3 | . . 2 . . 1 . Known Exits Taken 4 | . 1 1 1 . 1 . Unknown Exits Taken 2 | 1 . . . 1 . . Scrap Searched 2 | . . 1 . . 1 . Spaces Dug . | . . . . . . . Terrain Destroyed 66 | . 38 . . . . 28 Melee . | . . . . . . . Projectile . | . . . . . . . AOE 66 | . 38 . . . . 28 Terrain Rammed . | . . . . . . . Walls Destroyed . | . . . . . . . Machines Disabled . | . . . . . . . Actions | -11 -10 -10 -9 -9 -7 -6 --------- Run | Jun Mat Min Mat Min Zio Pro Total 4860 | 131 1013 693 727 47 2015 234 Wait 807 | . 101 70 25 1 609 1 Move 3705 | 89 787 582 598 46 1396 207 Hop . | . . . . . . . Pick Up 55 | 11 15 7 16 . 5 1 Fast Attach 16 | 5 5 . 4 . . 2 Attach 15 | 2 1 3 8 . . 1 Detach 4 | . . . 4 . . . Swap 40 | . 17 8 13 . . 2 Drop 56 | 5 17 3 24 . 5 2 Fire 124 | 8 64 16 31 . . 5 Melee 17 | . . . 4 . . 13 Ram . | . . . . . . . Kick . | . . . . . . . Crush 21 | 11 6 4 . . . . Escape Stasis . | . . . . . . . Rewire . | . . . . . . . Trap . | . . . . . . . Miscellaneous . | . . . . . . . Route ------- -11/Junkyard -10/Materials (discovered 4 exits: *Mat x2 / *Min x2) -10/Mines -9/Materials (discovered 3 exits: *Mat / *Min x2) -9/Mines -7/Zion -6/Proximity Caves History --------- Turn | Location | Event 7 | -11/Junkyard | Discovered new exit (range 16) 189 | -11/Junkyard | Entered Materials 317 | -10/Materials | Build established: Mutant 473 | -10/Materials | Discovered new exit (range 5) 481 | -10/Materials | Identified exit to Materials 640 | -10/Materials | Discovered new exit (range 16) 789 | -10/Materials | Discovered new exit (range 16) 860 | -10/Materials | Identified exit to Mines 1057 | -10/Materials | Build established: Scavenger-Mutant 1114 | -10/Materials | Discovered exit to Materials (range 16) 1325 | -10/Materials | Entered Mines 1333 | -10/Mines | Learned location of Zion (-7) 1348 | -10/Mines | Met a Derelict bent on vengeance 1388 | -10/Mines | Core integrity fell below 50% 1468 | -10/Mines | Discovered exit to Materials (range 5) 1684 | -10/Mines | Build established: Mutant 1836 | -10/Mines | Core integrity fell below 20% 2172 | -10/Mines | Build established: Scavenger-Mutant 3023 | -10/Mines | Learned location of Storage (-8) 3683 | -10/Mines | Entered Materials 3683 | -9/Materials | Evolved 2 slots: Utility x2 4025 | -9/Materials | Identified exit to Mines 4085 | -9/Materials | Discovered new exit (range 13) 4101 | -9/Materials | Identified exit to Materials 4195 | -9/Materials | Entered Mines 4212 | -9/Mines | A Derelict revealed a hidden shortcut to a safe place 4213 | -9/Mines | Assembled infested the area 4214 | -9/Mines | Entered Zion 4233 | -7/Zion | Given A8's code to call for help 4411 | -7/Zion | Learned 4 Factory zone layouts 4425 | -7/Zion | Learned location of Warlord (-5) 4507 | -7/Zion | Imprinted 4509 | -7/Zion | Declared Zion's savior 4865 | -7/Zion | Found Prototype Device 4879 | -7/Zion | Found CR-A16's Pointy Stick 5325 | -7/Zion | Discovered new exit (range 13) 5347 | -7/Zion | Identified exit to Proximity Caves 5348 | -7/Zion | Entered Proximity Caves 5452 | -6/Proximity Caves | Core integrity fell below 50% 5467 | -6/Proximity Caves | Core integrity fell below 20% 5479 | -6/Proximity Caves | Destroyed by L-41 Fighter with Axe Last Messages --------------- 05422_ L-41 Fighter system offline. 05437_ Lgt. Ion Engine destroyed. 05439_ G-50 Soldier destroyed. 05439_ Grenade Launcher destroyed. 05439_ Destroyed Grenade Launcher. 05440_ Hacking Suite destroyed. 05442_ Imp. Flight Unit destroyed. 05445_ Dropped Sml. Storage Unit. 05446_ G-50 Soldier destroyed. 05448_ Datajack destroyed. 05453_ G-50 Soldier destroyed. 05456_ Acquired 45 matter. 05456_ Dropped Sml. Laser. 05456_ Acquired Hvy. Laser. 05457_ Acquired Carbon-fiber Leg. 05459_ Acquired Sml. Laser. 05466_ Sml. Laser destroyed. 05468_ The unstable cave ceiling collapses. 05474_ Carbon-fiber Leg destroyed. 05478_ The unstable cave ceiling collapses. Map ----- +----------------------------------------------------+ | ????????# #????????## #???????? | | ????????# ########## #### #???????? | | ????????# ## ##??# ##????### | | ????????## # ################ ##### #????# | | ?????????###### #??????###?????## ## ##???# | | ??????????????# #?????## ##?????# ## ##### | | ??????????????# #????## #####?# ## | | ??????????????# #?#### #?###### ## | | ??????????????# ### ####???# ## | | ??????????????# ## ## #### ### ### | | ??????????????# ## #?? | | ??????????????# #### #?? | | ??????????????## ####??## ##### #####?? | | ???????????????# ##??????# #???# ##?????? | | ???????????????## ##???????# ##??# #??????? | | ????????????????###????????## #### #??????? | | ????????????????????????????# ## #??????? | | ???????????????????????????? ??# ## #??????? | | ??????????????????????###### ???# #??????? | | ??????????????????????? ##???# #??????? | | ????????????????????#### #??## #??????? | | ???????????????????## #### ##??????? | | ??????????????######g # ######???????? | | ?????????????## ##????????????? | | ?????????????# l l ####?????????????? | | ?????????????# ## % @ ##????????????????? | | ?????????????## * % # #???????????? | | ??????????????##b ## # ???????? | | ???????????????#### !!!## ### ???????? | | ?????????????????## #### #??? ???????? | | ?????????????????# ##?# ##????? ??????? | | ?????????????????# #?# #???????? ??????? | | ?????????????????# #?## ###?????????? ??????? | | ?????????????????## ##??# ##???????????????????? | | ??????????????????#####???##?????????????????????? | | ?????????????????????????????????????????????????? | | ?????????????????????????????????????????????????? | | ?????????????????????????????????????????????????? | | ?????????????????????????????????????????????????? | | ?????????????????????????????????????????????????? | | ?????????????????????????????????????????????????? | | ?????????????????????????????????????????????????? | | ?????????????????????????????????????????????????? | | ?????????????????????????????????????????????????? | | ?????????????????????????????????????????????????? | | ?????????????????????????????????????????????????? | | ?????????????????????????????????????????????????? | | ?????????????????????????????????????????????????? | | ?????????????????????????????????????????????????? | | ?????????????????????????????????????????????????? | +----------------------------------------------------+ Best States ------------- Heat Dissipation 38 Energy Generation 14 Energy Capacity 250 Matter Stores 300 Matter Capacity 300 Sight Range 18 Robot Scan Range 14 Terrain Scan Range 16 Terrain Scan Density 10 Propulsion Shielding 33 Evasion (%) 62 Recoil Reduction 2 Offensive Hacking 10 Item Schematics ----------------- Ripper | -7/Zion | Archive Focal Shield | -7/Zion | Archive Recalibrator | -7/Zion | Archive Imp. System Shield | -7/Zion | Archive Arm. Huge Wheel | -7/Zion | Archive Mapping Drone Bay | -7/Zion | Archive Imp. Target Analyzer | -7/Zion | Archive Gravmag System | -7/Zion | Archive Microactuators | -7/Zion | Archive Angular Momentum Engine | -7/Zion | Archive Xenon Bombardment Thruster | -7/Zion | Archive Adv. Signal Interpreter | -7/Zion | Archive Coolant Injector | -7/Zion | Archive Adv. Cooling System | -7/Zion | Archive Robot Schematics ------------------ H-55 Commando | -7/Zion | Archive Y-54 Guardian | -7/Zion | Archive S-27 Virus | -7/Zion | Archive Fabricated ------------ Nothing Alien Tech Used ----------------- None Achievements -------------- Robot Respite The One Challenges ------------ None Game ------ Seed BattleAutogunTendrils Manual? 0 Play Time 02:01:22 Cumulative 14.2 hours Start 2023.09.06 @ 19:06:38 End 2023.09.07 @ 19:51:41 Sessions 3 Manual Loads 0 Difficulty Rogue Special Mode None Game No. 5 Rogue 5 Adventurer 0 Explorer 0 Win Type - Total 0 Types 0/0/0/0/0/0/0/0/0 Lore% 15 Gallery% 10 Achievement% 10 Wizard Run 0 Options --------- ASCII 1 Keyboard 1 Movement Vi Keybinds 0 Fullscreen 0 Font 14/SmallcapsGlow Map View 75x55 Tactical HUD 1 Map Filters NONE Filters NONE Steam 1 RUN: bf2a2590-db15-46ad-bd0c-b44fe90e3d36